[Event "Benidorm Open-A 2022"]
[Site "Benidorm"]
[Date "2022.12.08"]
[Round "6.31"]
[White "Minana Menor, Antonio"]
[Black "Horcajada Reales, Guillermo"]
[Result "0-1"]
[ECO "B02"]
[WhiteElo "2102"]
[BlackElo "2081"]
[Annotator "TA"]
[PlyCount "69"]
[EventDate "2022.12.03"]
[EventType "swiss"]
[EventCountry "ESP"]
[SourceTitle "playchess.com"]
[Source "ChessBase"]
[SourceQuality "1"]
[TimeControl "5400+30"]

{[%evp 9,69,20,20,22,22,8,4,4,10,-41,-48,-31,-35,-47,-36,-44,-50,-51,-50,-42,-49,-47,-47,-50,-33,-68,-66,-66,-79,-83,-68,-252,-214,-257,-183,-277,-254,-267,-240,-253,-237,-229,-231,-260,-261,-354,-354,-354,-353,-349,-345,-339,-313,-314,-214,-208,-214,-210,-211,-29988,-1870,-29989]} 1. e4 Nf6 2. Nc3 d5 3. exd5 Nxd5 4. d4 c6 {[%cal Bc7c6,Bc6c5][%mdl 32]} 5. Bd3 g6 6. Nf3 {B02: Alekhine's Defence: Chase Variation and lines with early Nc3.} Bg7 7. h3 {[#]} Nxc3 $146 ({Predecessor:} 7... O-O 8. O-O Be6 9. a3 h6 10. Re1 Nc7 11. Bf4 Bd5 12. Be5 Nd7 13. Bxc7 Qxc7 14. Nxd5 cxd5 15. Rxe7 {1-0 (32) Muhd,A (1823)-Liew,K (1736) Skudai 2016}) 8. bxc3 {The position is equal.} O-O {[%cal Oc6c5]} 9. Bf4 (9. O-O $11) 9... c5 $15 10. O-O ({Much weaker is} 10. dxc5 Bxc3+ 11. Bd2 Bxa1 12. Qxa1 Re8 $17) 10... Nc6 {[%cal Rc5d4]} 11. Be4 cxd4 12. Bxc6 {[%mdl 64] [#] Remove Defender} bxc6 13. cxd4 c5 {[%cal Rc5d4]} 14. c3 cxd4 15. cxd4 Bb7 16. Re1 e6 (16... Rc8 {with more complications.} 17. Ne5 Qa5 18. Rb1 Ba8) 17. Rc1 Bxf3 (17... Qa5 {seems wilder.} 18. Ne5 Qxa2 19. Rc7 Qd5) 18. Qxf3 Bxd4 19. Rcd1 {Be5 is the strong threat.} Qa5 {Prevents Be5.} 20. Rxd4 $2 Qxe1+ $19 21. Kh2 Rad8 22. Re4 {[#]} (22. Bd6 {might work better.}) 22... Qd1 $1 23. Qc3 Qd5 24. Bh6 {[%csl Gh6][%cal Rc3g7]} f6 $1 (24... Qxe4 $2 25. Qg7#) 25. Qe3 Rfe8 26. Qxa7 {[%csl Gh6][%cal Ra7g7]} Rd7 {Against Qg7+} (26... Qxe4 $2 27. Qg7#) 27. Qa4 Ra8 28. Qb4 Qd6+ (28... Qxa2 $2 {perishes.} 29. Qc3 $19) 29. Qxd6 Rxd6 {[%mdl 4096] Endgame KRR-KRB} 30. Rb4 Rd7 {[%cal Og8f7] Prevents Rb7.} (30... Rxa2 $2 {too greedy.} 31. Rb8+ Kf7 32. Rf8+ Ke7 33. Rh8) 31. a4 Kf7 {aiming for ...g5.} 32. Be3 e5 33. Bb6 Ke6 34. Rd4 $2 (34. Rc4 $19) 34... Rxd4 (34... exd4 $142 35. g4 d3 36. Be3 d2 37. Bxd2 Rxd2 38. Kg2 Rxa4 39. Kf3 g5 40. Ke3 Rb2 41. Kf3 Rf4+ 42. Kg2 Rbxf2+ 43. Kh1 Rd2 44. Kg1 Ra4 45. Kh1 Ra1#) 35. Bxd4 {White got outplayed after the opening.   Weighted Error Value: White=0.49/Black=0.29 (precise)} 0-1

[Event "Benidorm Open-A 2022"]
[Site "Benidorm"]
[Date "2022.12.08"]
[Round "7.1"]
[White "Saydaliev, Saidakbar"]
[Black "Ajay Karthikeyan"]
[Result "1-0"]
[ECO "A05"]
[WhiteElo "2376"]
[BlackElo "2441"]
[Annotator "TA"]
[PlyCount "97"]
[EventDate "2022.12.03"]
[EventType "swiss"]
[EventCountry "ESP"]
[SourceTitle "playchess.com"]
[Source "ChessBase"]
[SourceQuality "1"]
[TimeControl "5400+30"]

{[%evp 9,97,34,32,35,28,19,35,25,23,35,43,4,6,0,14,0,6,7,8,0,0,0,18,19,67,36,44,20,20,20,16,17,33,43,41,44,34,35,43,30,35,0,18,19,19,26,25,16,59,50,500,511,505,507,559,501,482,472,770,770,679,652,1138,1093,29973,29974,29973,29975,29974,29975,29972,29975,29977,29978,29978,29979,29979,29980,29980,29981,29981,29982,29982,29983,29984,29985,29985,29986,29986,29987]} 1. Nf3 Nf6 2. g3 d5 3. Bg2 e6 4. d4 h6 5. c4 Bd6 6. O-O {D02: 1 d4 d5 2 Nf3 sidelines, including 2...Nf6 3 g3 and 2...Nf6 3 Bf4.} O-O 7. Nc3 Nc6 8. b3 {White is slightly better.} dxc4 9. bxc4 e5 10. d5 Na5 11. Nd2 {[#]} a6 $146 ({Predecessor:} 11... Nd7 12. Qc2 f5 13. Na4 b6 14. Nb3 Nb7 15. f4 Qe8 16. Nc3 a6 17. e4 Ndc5 18. fxe5 Bxe5 {½-½ (56) Damljanovic,B (2441)-Alexakis,D (2484) Belgrade 2022}) 12. Bb2 Bd7 13. Rc1 b6 14. Nce4 Nxe4 15. Nxe4 Nb7 {Against c5} 16. f4 exf4 (16... f6 $11) 17. Qd4 {[%csl Gb2][%cal Rd4g7] [#] White has more active pieces. The black rooks are badly placed.} f6 18. Nxd6 (18. gxf4 $5 {[%cal Re4d6]} Bb4 19. f5 $11) 18... cxd6 19. gxf4 b5 20. e4 Rc8 21. cxb5 Bxb5 22. Rxc8 Qxc8 23. Rc1 Qg4 24. a4 Bd7 25. e5 {[#] aiming for e6.} fxe5 (25... Bf5 $5 {[%cal Rb7c5]} 26. h3 Qe2 $14) 26. fxe5 {And now e6 would win.} Rf4 {Prevents e6.} 27. Qe3 {Hoping for e6.} Qg5 $1 {[%cal Of4f1] Threatens to win with ...Rf1+!} 28. Re1 $36 {[%mdl 2048] Prevents Rf1+. White has good play.} Nc5 {Strongly threatening ...Re4.} 29. Bc1 dxe5 {[%mdl 8192] This costs Black the game.} (29... Qh4 $1 $14) 30. Qxc5 $18 Qh4 31. Qe3 Bxa4 32. Qg3 Qxg3 33. hxg3 Rd4 (33... Rg4 $142 34. Kf2 Kf7) 34. Bb2 ({And not} 34. Rxe5 Rd1+ 35. Kf2 Rxc1 $11) 34... Rd2 35. Bxe5 Bb3 36. d6 Bd5 37. Bxd5+ {White mates.} Rxd5 {KRB-KR} 38. Re4 Kf7 39. Rd4 Rxd4 40. Bxd4 {KB-K3P} g6 41. Kf2 Ke6 42. Bc5 h5 43. Kf3 g5 44. Ke4 a5 45. Ba3 a4 46. Bb4 Kd7 47. Kf5 h4 48. gxh4 (48. Kxg5 h3 49. g4 h2 $19) 48... gxh4 49. Kg4 {Weighted Error Value: White=0.09 (flawless) /Black=0.43} 1-0

[Event "Benidorm Open-A 2022"]
[Site "Benidorm"]
[Date "2022.12.08"]
[Round "7.2"]
[White "Sattarov, Bobir"]
[Black "Vignesh B"]
[Result "1-0"]
[ECO "A46"]
[WhiteElo "2433"]
[BlackElo "2032"]
[Annotator "TA"]
[PlyCount "112"]
[EventDate "2022.12.03"]
[EventType "swiss"]
[EventCountry "ESP"]
[SourceTitle "playchess.com"]
[Source "ChessBase"]
[SourceQuality "1"]
[TimeControl "5400+30"]

{[%evp 14,112,27,0,19,12,31,38,34,13,19,19,19,10,18,9,16,20,16,15,19,17,9,15,19,15,18,0,0,0,0,0,0,-13,-13,-13,-17,-17,0,0,0,0,0,0,0,0,0,0,6,6,2,0,0,0,0,0,0,0,0,0,0,0,0,0,0,0,0,0,0,0,0,0,0,0,0,0,681,0,450,0,0,0,0,-129,-147,-319,-306,-1236,445,430,396,-295,322,0,239,-2500,5288,4698,1662,751,572]} 1. d4 Nf6 2. Nf3 e6 3. Bg5 c5 4. e3 Nc6 5. Nbd2 d5 6. c3 Be7 7. Bd3 h6 8. Bh4 Nd7 {D03: 1 d4 d5 2 Nf3 Nf6 3 Bg5, including Torre Attack with early ...d5.} 9. Bg3 Bf6 10. O-O O-O {White is slightly better.} 11. Qb1 {[#]} cxd4 $146 ({Predecessor:} 11... b6 12. a4 a5 13. Bb5 Bb7 14. Rd1 g6 15. Qd3 Bg7 16. Rac1 Nf6 17. h3 Na7 {1-0 (53) Rocha,S (2383)-Silva,M (2213) Almada 2017}) 12. exd4 e5 13. dxe5 Ndxe5 14. Nxe5 Bxe5 15. Bxe5 Nxe5 16. Nb3 Qf6 {[%cal Oe5f3]} (16... Re8 {feels hotter.} 17. Re1 Qg5 18. Nd4 Bd7) 17. Qc2 Re8 18. Rfe1 Bg4 19. Re3 Nc6 20. Rg3 Bh5 21. Qd2 Rad8 22. Rh3 Bg4 23. Re3 Rxe3 24. Qxe3 d4 {Inhibits h3.} 25. cxd4 Nxd4 (25... b6 {simplifies} 26. Bc4 Nxd4 27. Nxd4 Qxd4 28. Qxd4 Rxd4 29. b3 Be6) 26. Re1 {[%cal Oe3e8] [#] White wants to mate with Qe8+!} Be6 27. Nc5 b6 28. Nxe6 Qxe6 29. Kf1 Qxe3 30. Rxe3 $11 {[%mdl 4096] Endgame KRB-KRN} Ne6 31. g3 g5 32. Ke2 Kg7 33. Bc4 Nd4+ 34. Kf1 Kf6 {Against Re7} 35. Rd3 Rd7 36. a4 Ke5 37. b3 f5 38. Re3+ Kd6 39. f4 gxf4 40. gxf4 Kc5 41. Kf2 Kb4 42. Rd3 Kc5 43. h3 Rd6 44. Ke3 Rg6 $2 {[%mdl 8192] [#]} 45. Bf7 $2 ({White must play} 45. Rxd4 $18 Rg3+ 46. Kf2 Rxb3 47. Bxb3 Kxd4 48. Bc2) 45... Rg7 $2 {[%mdl 8192]} (45... Rg3+ $11 46. Kd2 Rg2+ 47. Kd1 Rg1+ 48. Kd2 Rg2+ 49. Kd1 Rg1+ 50. Kd2 Rg2+) 46. Rc3+ $2 (46. b4+ $18 Kxb4 47. Rxd4+ Kc5 48. Rd5+ Kb4 49. Rxf5) 46... Kb4 47. Rc4+ Ka3 $1 48. Bd5 (48. Rc7 $11 Nxb3 49. Rxa7) 48... Nxb3 $17 49. Rc3 $2 (49. Kf2 $17 Nc5 50. a5) 49... Kxa4 $19 {Threatens to win with ...Rg3+.} ({Avoid the trap} 49... Rg3+ $2 50. Bf3 $19) 50. Rxb3 $2 {KRB-KR} ({Reject} 50. Bxb3+ Kb4 51. Rc6 (51. Kd2 Rg2+ 52. Ke3 Rg3+ 53. Kf2 Rxc3 $19) 51... Kxb3 52. Rxh6 Rb7 $19) (50. Rc6 Rg3+ 51. Kf2 Rxh3 52. Be6) 50... b5 $4 {[%mdl 8192]} (50... Rg3+ $19 51. Ke2 Rxb3) 51. Rb2 b4 52. Be6 $4 {[%mdl 8192]} (52. Kd4 $18 {and life is good for White.}) 52... a5 $4 {[%mdl 8192]} (52... Re7 $19 {avoids the disaster.} 53. Ra2+ Kb5) 53. Bc4 {Inhibits b3.} (53. Bxf5 $18 {Black must now prevent Be6.} Ka3 54. Rb1) 53... b3 $2 (53... Rg3+ $11 {and Black is okay.} 54. Kf2 Rxh3 55. Ra2+ Ra3) 54. Rxb3 $4 {[%mdl 8192]} (54. Bxb3+ $18 Ka3 55. Ra2+ Kxb3 56. Rxa5) 54... Rc7 $4 {[%mdl 8192]} (54... Rg3+ $19 55. Kd2 Rxb3) 55. Be6 Rc5 56. Kf3 (56. Rb6 $142 Rc3+ 57. Ke2) 56... Rc1 {Weighted Error Value: White=0.88/Black=0.61} 1-0

[Event "Benidorm Open-A 2022"]
[Site "Benidorm"]
[Date "2022.12.08"]
[Round "7.3"]
[White "Christiansen, Johan-Sebastian"]
[Black "Sarkar, Justin"]
[Result "0-1"]
[ECO "B92"]
[WhiteElo "2582"]
[BlackElo "2350"]
[Annotator "TA"]
[PlyCount "54"]
[EventDate "2022.12.03"]
[EventType "swiss"]
[EventCountry "ESP"]
[SourceTitle "playchess.com"]
[Source "ChessBase"]
[SourceQuality "1"]
[TimeControl "5400+30"]

{[%evp 15,54,5,7,0,-6,-48,-35,-20,0,0,0,0,0,0,30,2,19,0,0,0,0,-4,0,-37,-67,-146,-134,-327,-118,-297,-288,-581,-632,-716,-696,-899,-894,-889,-884,-1786,-1611]} 1. e4 c5 2. Nf3 d6 3. d4 cxd4 4. Nxd4 Nf6 5. Nc3 a6 6. Be2 e5 7. Nb3 Be7 8. g4 h6 9. h4 {B92: Sicilian Najdorf: 6 Be2.} Be6 10. g5 {Inhibits a5.} hxg5 11. Bxg5 {Black is slightly better.} Nbd7 12. Qd3 b5 13. O-O-O {[#]} b4 $146 {Prevents f4.} ({Predecessor:} 13... Rc8 14. Kb1 Qc7 15. a3 Nb6 16. Bxf6 gxf6 17. f4 Nc4 18. f5 Nxa3+ 19. Ka2 Bc4 {1-0 (28) Hansen,E (2606)-Potapova,M (2257) Chess.com INT 2021}) 14. Nd5 Bxd5 15. exd5 a5 {[%cal Ba6a5,Ba5a4,Ba4b3][%mdl 32]} 16. f4 a4 {Inhibits h5.} 17. Nd2 Kf8 18. Bf3 b3 19. cxb3 (19. axb3 $5 {[%cal Rb3b4]} e4 20. Nxe4 $11) 19... axb3 20. a3 ({White should try} 20. Nxb3 $15 Rxa2 21. Kb1) 20... Nc5 $17 21. Qe3 {[#]} (21. Qc3 $17 e4 22. Be2) 21... exf4 $2 $40 {[%mdl 128] Black has strong attack.} (21... Qc8 $1 $19 {( -> ...Nd3+)} 22. Nc4 Ra4) 22. Bxf4 $2 (22. Qe2 $17 {was worth a try.}) 22... Qc8 $19 23. Nc4 $2 {[#]} ({Don't go for} 23. Kb1 $2 Qf5+ $19) (23. Nxb3 Nxb3+ 24. Kb1) 23... Qf5 $1 {[%csl Gb3][%cal Rf5c2] Black is clearly winning.} ({And not} 23... Ne6 24. dxe6 Qxc4+ 25. Kd2 $11) 24. Rd2 {Against Qc2+} Ra4 25. Qd4 Nfe4 {Against h5} 26. Bxe4 Qxf4 27. Re1 Bf6 {Weighted Error Value: White=1.17/Black=0.17 (very precise)} 0-1

[Event "Benidorm Open-A 2022"]
[Site "Benidorm"]
[Date "2022.12.08"]
[Round "7.4"]
[White "Assylov, Miras"]
[Black "Gavarrete, Nahun"]
[Result "1/2-1/2"]
[ECO "B62"]
[WhiteElo "2025"]
[BlackElo "2308"]
[Annotator "TA"]
[PlyCount "70"]
[EventDate "2022.12.03"]
[EventType "swiss"]
[EventCountry "ESP"]
[SourceTitle "playchess.com"]
[Source "ChessBase"]
[SourceQuality "1"]
[TimeControl "5400+30"]

{[%evp 12,70,37,29,65,13,21,9,0,-25,-25,-53,0,0,0,-18,-20,-35,-50,-35,-37,-56,-46,-47,-47,-62,-62,-54,-49,-45,-45,-39,-40,-27,-31,-42,0,0,0,0,0,0,0,0,0,0,0,-8,0,-56,-49,-49,-48,-56,-56,-52,-54,-80,-82,-83,-75]} 1. e4 c5 2. Nf3 Nc6 3. d4 cxd4 4. Nxd4 Nf6 5. Nc3 d6 6. Bg5 e6 7. Bb5 Qc7 {B62: Sicilian: Richter-Rauzer: 6...e6: Unusual White 7th moves.} 8. Qd3 {White is much more active.} (8. Bxf6 $14 gxf6 9. O-O) 8... Be7 $11 9. O-O-O O-O {[#] The position is equal.} 10. f4 $146 ({Predecessor:} 10. Bxc6 bxc6 11. f4 e5 12. Nf3 Re8 13. f5 Bf8 14. Bxf6 gxf6 15. g4 Rb8 16. Rdg1 d5 17. g5 Kh8 18. gxf6 Bxf5 19. exf5 e4 20. Qe3 exf3 21. Qg5 {1-0 (21) Farkas,R (2112)-Havaskori,L (1933) Budapest 2012}) 10... h6 11. Bh4 {[#]} Nxd4 (11... Nxe4 $1 $15 12. Bxe7 (12. Nxc6 Bxh4) 12... Nc5) 12. Qxd4 e5 13. Qd3 exf4 14. Bxf6 Bxf6 15. Nd5 Qd8 16. Nxf6+ Qxf6 17. Qxd6 Be6 $1 {Threatens to win with ...Qg5.} 18. Kb1 Rfd8 (18... Rad8 {simplifies} 19. Qc5 Qg5 20. Qxg5 hxg5 21. Bd3 g6) 19. Qc5 a6 (19... Rxd1+ {simplifies} 20. Rxd1 Qg6 21. Qe5 Qxg2 22. Qxf4 Qg5) 20. Rxd8+ Rxd8 21. Bd3 Rc8 22. Qf2 Qe5 23. Rf1 {[%cal Bh1f1,Bf1f3,Bf3g3][%mdl 32]} Qa5 (23... g5 {simplifies} 24. a3 Kg7 25. g3 fxg3 26. hxg3 Rd8) 24. b3 Qc3 25. Qxf4 a5 {[%cal Ba6a5,Ba5a4][%mdl 32]} 26. e5 {Against a4} b5 $1 27. Rf3 {[%cal Od3h7] Hoping for Bh7+! Dancing on a razor blade.} (27. Bxb5 $2 {loses.} Qxc2+ 28. Ka1 Qc3+ 29. Kb1 {[#]} Bxb3 $1 {[%mdl 512]} 30. axb3 Qxb3+ 31. Ka1 Rc2 $19) 27... Qe1+ 28. Qc1 Qxe5 29. Rg3 a4 {And now ...axb3 would win.} 30. Qb2 (30. Qe3 $11 Qf6 31. Rf3) 30... Qe1+ $15 31. Qc1 Qxc1+ 32. Kxc1 axb3 33. axb3 Bxb3 34. Bxb5 Bxc2 ({Don't play} 34... Rxc2+ 35. Kb1 $11) 35. Kd2 Bf5 {Weighted Error Value: White=0.13 (very precise) /Black=0.06 (flawless)} 1/2-1/2

[Event "Benidorm Open-A 2022"]
[Site "Benidorm"]
[Date "2022.12.08"]
[Round "7.5"]
[White "Ram Aravind L N"]
[Black "Fernandez Guillen, Ernesto J."]
[Result "0-1"]
[ECO "A05"]
[WhiteElo "2272"]
[BlackElo "2462"]
[Annotator "TA"]
[PlyCount "164"]
[EventDate "2022.12.03"]
[EventType "swiss"]
[EventCountry "ESP"]
[SourceTitle "playchess.com"]
[Source "ChessBase"]
[SourceQuality "1"]
[TimeControl "5400+30"]

{[%evp 9,164,10,10,0,-4,-6,-6,-24,-23,-22,-16,-40,-43,-95,-86,-94,-59,-35,0,0,20,53,50,60,104,87,90,73,131,131,125,132,131,136,135,146,108,10,15,10,11,10,10,13,14,0,0,0,0,0,0,0,0,0,0,0,0,0,0,0,0,-43,0,0,0,0,0,0,0,0,0,0,0,0,0,0,0,0,0,0,0,0,0,0,0,0,0,-27999,-27999,-27999,-27997,-27998,-27997,-27998,0,-27998,-27998,-27999,-27999,-27993,-27993,-27994,-27993,-27994,-27994,-27995,-27995,-27996,-27996,-27997,-27997,-27988,-27988,-27989,-27989,-27990,-27990,-27991,-27991,-27992,-27992,-27996,-27996,-27997,-27997,-27998,-27998,-27990,-27998,-27993,-27993,-27994,-27994,-27995,-27995,-27996,-27995,-27996,-27996,-27997,-27997,-27998,-27998,-27999,-27999,-27995,-27995,-27996,-27996,-27997,-27997,-27998,-27997,-27998,-27998,-27999,-27999]} 1. Nf3 Nf6 2. b3 b6 3. Bb2 Bb7 4. e3 g6 5. d4 Bg7 6. Nbd2 {A05: Réti Opening: 1 Nf3 Nf6.} O-O 7. c4 d6 8. Bd3 {The position is equal.} Nbd7 9. Qc2 e5 10. dxe5 dxe5 11. Nxe5 (11. O-O $15) 11... Nxe5 $17 (11... Bxg2 $6 12. Nxd7 (12. Rg1 Nxe5 13. Bxe5 Qe7 $15) 12... Nxd7 13. Bxg7 Kxg7 14. Rg1 $11) 12. Bxe5 {[#]} Re8 $146 ({Predecessor:} 12... Qe7 13. Bb2 Bxg2 14. Rg1 Bb7 15. O-O-O a5 16. a3 Rad8 17. c5 Rd5 18. b4 axb4 19. axb4 bxc5 {0-1 (44) Brown,M (2524)-Mamedyarov,S (2817) Chess.com INT 2019}) 13. Bc3 Ng4 {[%cal Og4e3]} 14. Bxg7 Nxe3 15. fxe3 Rxe3+ 16. Kd1 $1 Kxg7 17. Qc3+ Kg8 18. Kc2 Qe7 (18... Qh4 $142) 19. Rhd1 $1 $16 Rd8 {[%cal Ob7g2] Threatens to win with ...Bxg2!} 20. Nf1 Rexd3 21. Rxd3 Be4 {[#]} 22. Rad1 {[%cal Of1g3] Hoping for Ng3!} Qa3 {[#]} 23. Ng3 Qxa2+ $11 24. Kc1 {[%cal Rd3d8]} Bxd3 {Really sharp!} 25. Rxd3 Rxd3 26. Qxd3 Qxg2 27. Qd8+ Kg7 28. Qg5 Qg1+ (28... Qxh2 $2 29. Nf5+ Kh8 30. Qd8#) 29. Kb2 {Threatening mate with Nf5+.} Qxh2+ 30. Kc3 {White threatens Nf5+ and mate.} Qh3 {Prevents ?nota?.} 31. Qe5+ Kg8 32. Qxc7 h5 {White must now prevent ...h4.} 33. Kb4 h4 34. Qd8+ (34. Ne4 Qf5 35. Qd8+ Kg7 $17) 34... Kg7 $1 ({Don't do} 34... Kh7 35. Ne4 Qf5 36. Qxh4+ Kg7 37. Kc3 $16) 35. Ne4 Qf5 {[%csl Gb6][%cal Rf5a5]} (35... Qe6 $5 {[%cal Re6e4]} 36. Ng5 (36. Qxh4 $2 {perishes.} Qe5 $19) 36... Qf6 $15) 36. Qd5 {Inhibits Qa5+.} h3 37. Qxf5 gxf5 {[%mdl 4096] Endgame KN-KP} 38. Nf2 h2 39. Kb5 Kf6 40. b4 Ke5 (40... Ke6 $5) 41. c5 Kd5 42. cxb6 axb6 43. Kxb6 {KN-K3P} Kd4 44. b5 $1 Ke3 45. Nh1 f4 46. Kc5 {aiming for b6.} f3 (46... f5 $5) 47. b6 {And now Ng3 would win.} f2 48. Nxf2 {[%mdl 8192] White is on the road to losing.} Kxf2 {KPP-KP} 49. b7 h1=Q (49... h1=R $2 50. b8=Q $18 (50. b8=B f5 $19)) 50. b8=Q {KQ-KQ} Qc1+ 51. Kd5 Qd2+ 52. Ke5 $2 {[%mdl 8192] [#]} (52. Ke4 $11) 52... Qg5+ $1 {Black mates.} 53. Kd4 Qe3+ 54. Kd5 f5 55. Qh2+ Kf1 56. Qh1+ Ke2 57. Qg2+ Ke1 58. Qh1+ Kd2 59. Qg2+ Kc3 60. Qf1 f4 61. Qa1+ Kd2 62. Qb2+ Ke1 63. Qb1+ Kf2 64. Qb2+ Kf3 65. Qc2 Kg3 66. Qg6+ Kf2 67. Qc2+ Qe2 68. Qh7 Qd2+ 69. Ke5 f3 70. Qh2+ Ke1 71. Qg1+ Ke2 72. Qg4 Qc3+ 73. Kd5 Qe3 74. Kc4 Kd2 75. Qd7+ Ke1 76. Qh3 Qe4+ 77. Kc3 f2 78. Qg3 Ke2 79. Qh2 Qe3+ 80. Kc2 Qc5+ 81. Kb2 Qg5 82. Kc2 Ke1 {Weighted Error Value: White=0.29 (precise) /Black=0.13 (very precise)} 0-1

[Event "Benidorm Open-A 2022"]
[Site "Benidorm"]
[Date "2022.12.08"]
[Round "7.8"]
[White "Ibanez Aullana, Ramon"]
[Black "Van Foreest, Machteld"]
[Result "0-1"]
[ECO "E08"]
[WhiteElo "2270"]
[BlackElo "2206"]
[Annotator "TA"]
[PlyCount "70"]
[EventDate "2022.12.03"]
[EventType "swiss"]
[EventCountry "ESP"]
[SourceTitle "playchess.com"]
[Source "ChessBase"]
[SourceQuality "1"]
[TimeControl "5400+30"]

{[%evp 13,70,25,33,27,45,30,59,67,63,58,55,50,67,17,88,77,98,93,85,87,128,118,112,59,118,124,127,77,164,175,152,153,155,156,166,168,164,140,140,146,143,12,138,129,374,0,0,-425,-124,-124,-100,-29992,-29993,-29996,-29997,-29997,-29998,-29998,-29999]} 1. d4 d5 2. Nf3 Nf6 3. g3 e6 4. Bg2 Be7 5. O-O O-O 6. c4 Nbd7 7. Qc2 Ne4 8. Rd1 {E08: Closed Catalan: Main Line: 7 Qc2.} f5 {[#]} 9. b3 $146 ({Predecessor:} 9. Be3 c6 10. Ne5 Bf6 11. Nd3 a5 12. Nd2 Nxd2 13. Rxd2 Qe7 14. b3 g5 15. f4 {1-0 (110) Kruse,H (2636)-Bernal Varela,N (2401) FICGS email 2018}) 9... Ndf6 10. Ne5 {White is slightly better.} c6 11. f3 Nd6 12. Nc3 Qc7 13. Bg5 (13. e3 $14) 13... c5 (13... Nf7 $11 14. Nxf7 Rxf7) 14. e3 $1 $36 {[%cal Be2e3,Be3d4][%mdl 2080] Black is under strong pressure.} Rd8 15. Rac1 dxc4 16. bxc4 cxd4 17. exd4 Bd7 18. Bf4 ({White should try} 18. f4 $16) 18... b6 (18... Nxc4 $14 19. Nf7 Qc6 20. Nxd8 Rxd8) 19. Qb3 {[%cal Oc4c5] Strongly threatening c5!} Rac8 20. Nb5 (20. a4 $142) 20... Nxb5 (20... Qb7 $16 {keeps fighting.}) 21. cxb5 $18 Qb7 22. Nc6 $1 Re8 23. Be5 $1 f4 24. gxf4 {Hoping for f5.} Kh8 25. f5 exf5 26. f4 {Black must now prevent Nxe7.} Ne4 27. Qd5 (27. Nxe7 $16 {Rxc8 would kill now.} Rxe7 28. d5) 27... Ba3 (27... Bf8 $1 $11 28. Qc4 Re6) 28. Qf7 $1 $16 {[%csl Ge5][%cal Rf7g7]} Rg8 {[#]} (28... Rxe5 $2 29. dxe5 Rf8 30. Qxf8+ $3 {[%mdl 512]} (30. Qxd7 Qxd7 31. Rxd7 Bxc1 $16) 30... Bxf8 31. Nd8 $18) (28... Bf8 $16 {was called for.}) 29. Bxe4 $2 Bxc1 $11 ({But not} 29... fxe4 30. Rc3 Bxc6 31. Qxb7 Bxb7 32. Rxa3 $16) 30. Bxf5 $2 {[%mdl 8192]} (30. Bd3 $11 {and White is okay.} Be3+ 31. Kf1) 30... Be3+ $2 (30... Bxc6 $19 31. Qxb7 Bxb7 32. Bxc8 Rxc8) 31. Kf1 $17 Bxc6 {The board is on fire.} 32. Qh5 $2 {[%mdl 8192]} (32. Qxb7 $17 Bxb7 33. Bxc8 Bxc8 34. Rd3) 32... Bxb5+ {Black mates.} 33. Rd3 Rc1+ 34. Ke2 Qg2+ 35. Kxe3 Re1+ {Quite a comeback for Black.   Weighted Error Value: White=0.66/Black=0.45} 0-1

[Event "Benidorm Open-A 2022"]
[Site "Benidorm"]
[Date "2022.12.08"]
[Round "7.9"]
[White "Kuipers, Eelco"]
[Black "Chernikov, Vladimir"]
[Result "1/2-1/2"]
[ECO "C41"]
[WhiteElo "2311"]
[BlackElo "2247"]
[Annotator "TA"]
[PlyCount "92"]
[EventDate "2022.12.03"]
[EventType "swiss"]
[EventCountry "ESP"]
[SourceTitle "playchess.com"]
[Source "ChessBase"]
[SourceQuality "1"]
[TimeControl "5400+30"]

{[%evp 15,92,31,52,12,24,16,27,14,7,0,2,0,0,-5,17,14,53,38,46,50,44,0,18,13,93,89,168,145,188,138,170,162,156,162,160,168,166,149,141,146,143,147,137,135,278,262,235,198,301,300,293,285,297,311,310,308,290,233,244,209,204,157,167,119,118,118,101,22,400,8,8,8,8,8,8,0,0,0,8]} 1. e4 d6 2. d4 Nf6 3. Nc3 Nbd7 4. Nf3 e5 5. Bc4 Be7 6. O-O O-O 7. a4 c6 8. a5 Rb8 9. Re1 {C41: Philidor Defence.} b5 10. axb6 axb6 11. Ba2 {White has an edge.} b5 (11... Qc7 {seems wilder.} 12. Nh4 exd4 13. Nf5 Ne5) 12. h3 {[#]} Bb7 $146 ({Predecessor:} 12... h6 13. Nb1 Re8 14. Nbd2 Bf8 15. c3 c5 16. dxe5 dxe5 17. Nh4 c4 18. b3 Nc5 19. bxc4 {0-1 (42) Chudinovskih,A (2096)-Khruschiov,A (2343) Tuapse 2022}) 13. dxe5 dxe5 14. Nh4 b4 15. Na4 Nc5 {Strongly threatening ...Qxd1.} (15... Ra8 {feels hotter.} 16. Bb3 c5 17. Nf5 g6) 16. Qxd8 Rfxd8 (16... Rbxd8 17. Nf5 Nxa4 18. Nxe7+ Kh8 19. Bc4 $16) 17. Nxc5 (17. Nf5 {with more complications.} Bf8 18. Nxc5 Bxc5 19. Be3) 17... Bxc5 18. Bg5 Ra8 19. Nf3 Bd4 (19... Re8 $11) 20. Nxd4 $16 Rxd4 (20... exd4 $16 21. f3 h6) 21. f3 $18 h6 22. Bh4 (22. Be3 $18 Rdd8 23. Bc5) 22... Nh5 23. Bb3 Rxa1 24. Rxa1 Nf4 25. Bf2 Rd7 26. Be3 Ne2+ 27. Kf2 Nd4 28. Bxd4 exd4 $16 {[%mdl 4096] Endgame KRB-KRB} 29. Ke2 c5 (29... Kf8 $16 {might work better.}) 30. Ra5 Rc7 {[#]} 31. Kd3 $1 Bc8 (31... Kf8 {was called for.} 32. Kc4 d3) 32. Bd5 $18 Kf8 33. Kc4 b3 34. Kxb3 {And now Kc4 would win.} (34. Rxc5 $2 {loses.} bxc2 35. Rxc7 c1=Q+ $19) ({Don't play} 34. cxb3 $6 Be6 35. Bxe6 (35. Rxc5 $2 Rxc5+ 36. Kxd4 Rc2 $19) 35... fxe6 $16) 34... Ke7 35. Kc4 Kd6 36. f4 {Hoping for e5+.} f6 {Against e5+} 37. b3 h5 38. Kd3 h4 39. Bc4 ({White should play} 39. Kc4 $18) 39... g5 $16 {[#]} 40. fxg5 fxg5 41. b4 (41. Bd5 $16) 41... Ke5 $2 {[%mdl 8192]} (41... Bb7 $1 $11 {and Black is okay.}) 42. Rxc5+ $2 (42. bxc5 $18 Rc6 43. Rb5) 42... Rxc5 $11 {The position is equal.} 43. bxc5 {aiming for c6.} Bb7 {Inhibits c6.} 44. Bd5 Ba6+ 45. Bc4 (45. Kd2 $5 Bf1 $8 46. c6 Bxg2 47. c7 Bxh3 48. Bb7 $11) 45... Bb7 46. Bd5 Ba6+ $1 {Weighted Error Value: White=0.30/Black=0.39} 1/2-1/2